Cogmind - Beta 11.1 @@@ ROGUE MODE // 2022.06.05 @ 14:10:36 Player: Lyra Result: Destroyed by B-36 Bruiser with Hammer Performance ------------- Evolutions (2) 1000 Regions Visited (5) 1000 Robots Destroyed (80) 400 Value Destroyed (2249) 2249 Prototype IDs (7) 140 Alien Tech Used (0) 0 Bonus (156) 156 TOTAL SCORE: 4945 Bonus ------- High Alert Combat Kills 89 Follower Combat Kills 67 Cogmind --------- Core Integrity 0/550 Matter 146/300 Energy 48/265 System Corruption 0% Temperature Cool (0) Movement Treading (250) Ox1 Location -8/Materials Parts ------- > --- POWER (2) -------- Improved Ion Engine > --- PROPULSION (3) --- Armored Treads Armored Treads Wheel > --- UTILITY (4) ------ Advanced Heat Sink Large Storage Unit Hardened Medium Armor Plating Shield Generator > --- WEAPON (2) ------- Cooled Particle Cannon Missile Launcher > --- INVENTORY (15) --- Armored Treads Wheel Compact Matter Pod (150) Structural Scanner Sensor Array Transmission Jammer Light Armor Plating Hacking Suite Cooled Particle Cannon Cooled Particle Cannon Autogun Autogun Rocket Launcher Katana Peak State ------------ > --- POWER ------------ Improved Ion Engine > --- PROPULSION ------- Armored Treads Armored Treads Wheel > --- UTILITY ---------- Advanced Heat Sink Large Storage Unit Improved Signal Interpreter Hardened Medium Armor Plating > --- WEAPON ----------- Cooled Particle Cannon Cooled Particle Cannon > --- INVENTORY -------- Armored Treads Wheel Compact Matter Pod Structural Scanner Sensor Array Transmission Jammer Light Armor Plating Shield Generator Hacking Suite Cooled Particle Cannon Autogun Autogun Rocket Launcher Missile Launcher Katana [Rating: 34] Favorites ----------- Power Light Nuclear Core Engine Improved Ion Engine Power Core Light Nuclear Core Propulsion Light Treads Treads Light Treads Leg Aluminum Leg Wheel Wheel Utility Large Storage Unit Device Heat Sink Storage Large Storage Unit Processor Improved Signal Interpreter Protection Light Armor Plating Weapon Autogun Energy Gun Particle Gun Energy Cannon Cooled Particle Cannon Ballistic Gun Autogun Ballistic Cannon Assault Cannon Launcher Rocket Launcher Slashing Weapon Katana Piercing Weapon Makeshift Spear Build | -11 -10 -10 -10 -9 -8 ------- Run | Scr Mat Min Exi Min Mat Slots Evolved 4 | . . . . . 4 Power 1 | . . . . . 1 Propulsion 1 | . . . . . 1 Utility 2 | . . . . . 2 Weapon . | . . . . . . Parts Attached 88 | . 9 4 . . 75 Power 11 | . 1 1 . . 9 Engine 7 | . . 1 . . 6 Core 4 | . 1 . . . 3 Reactor . | . . . . . . Propulsion 18 | . 2 2 . . 14 Treads 12 | . 1 1 . . 10 Leg 1 | . . . . . 1 Wheel 5 | . 1 1 . . 3 Hover . | . . . . . . Flight . | . . . . . . Utility 20 | . 3 . . . 17 Device 9 | . 1 . . . 8 Storage 2 | . 2 . . . . Processor 2 | . . . . . 2 Hackware . | . . . . . . Protection 7 | . . . . . 7 Artifact . | . . . . . . Weapon 39 | . 3 1 . . 35 Energy Gun 5 | . 1 . . . 4 Energy Cannon 4 | . . . . . 4 Ballistic Gun 15 | . 1 . . . 14 Ballistic Cannon 2 | . . . . . 2 Launcher 6 | . 1 . . . 5 Special Weapon . | . . . . . . Impact Weapon . | . . . . . . Slashing Weapon 3 | . . . . . 3 Piercing Weapon 4 | . . 1 . . 3 Special Melee Weapon . | . . . . . . Unidentified Prototypes 3 | . . . . . 3 Parts Lost 16 | . . 2 . . 14 Power 4 | . . 1 . . 3 Propulsion 7 | . . 1 . . 6 Utility 3 | . . . . . 3 Weapon 2 | . . . . . 2 Highest Loss Streak 6 | . . 1 . . 6 To Critical Strikes . | . . . . . . Average Slot Usage (%) 95 | . 95 94 98 85 94 Engine 8 | . 1 4 14 14 11 Core 6 | . 11 5 . . 4 Treads 15 | . 13 14 14 14 17 Wheel 10 | . 13 13 14 14 7 Device 10 | . 10 14 14 14 7 Storage 11 | . 14 14 14 14 9 Processor 3 | . . . . . 8 Protection 4 | . . . . . 10 Energy Gun 5 | . 11 5 . . 2 Ballistic Gun 8 | . 15 . . . 9 Ballistic Cannon 1 | . . . . . 2 Launcher 3 | . . 14 13 . . Piercing Weapon 3 | . . 8 14 14 1 Naked Turns . | . . . . . . Heaviest Build 53 | 13 33 33 30 26 53 Greatest Support 40 | 20 20 20 10 10 40 Greatest Overweight (x) 5 | . 3 3 2 2 5 Average Overweight (x) 2 | . 2 2 2 2 3 Largest Inventory Capacity 15 | . 15 15 15 15 15 Average Capacity 14 | . 11 15 15 15 15 Most Carried 15 | . 15 15 15 15 15 Average Carried 12 | . 8 14 14 15 14 Final Capacity 15 | 8 15 15 15 15 15 Final Carried 15 | 6 15 14 15 15 14 Class Distribution -------------------- 53% | Mutant 46% | Scavenger-Mutant Dominant Class ---------------- Mutant | -10/Materials Mutant | -10/Mines Mutant | -10/Exiles Mutant | -9/Mines Scavenger-Mutant | -8/Materials Resources | -11 -10 -10 -10 -9 -8 ----------- Run | Scr Mat Min Exi Min Mat Matter Collected 2243 | 200 190 111 . 68 1674 Remotely . | . . . . . . Salvage Created 2895 | . 558 339 . . 1998 Parts 175 | . 31 32 . . 112 Haulers Intercepted 5 | . 2 . . . 3 Recyclers Shooed 1 | . . . . . 1 Parts Field Recycled . | . . . . . . Retrieved Matter . | . . . . . . Parts Self-Destructed . | . . . . . . Prevented . | . . . . . . Kills | -11 -10 -10 -10 -9 -8 ------- Run | Scr Mat Min Exi Min Mat Combat Hostiles Destroyed 58 | . 10 9 . . 39 Melee 12 | . . 2 . . 10 Guns 30 | . 10 . . . 20 Cannons 2 | . . . . . 2 AOE 14 | . . 7 . . 7 Classes Destroyed 12 | . 6 3 . . 3 Worker 5 | . 3 . . . 2 Builder 2 | . . 2 . . . Tunneler 1 | . . 1 . . . Hauler 5 | . 2 . . . 3 Recycler 5 | . . 2 . . 3 Operator 2 | . 1 . . . 1 Watcher 3 | . 2 . . . 1 Swarmer 15 | . 3 5 . . 7 Grunt 33 | . 7 4 . . 22 Duelist 1 | . . . . . 1 Sentry 8 | . . . . . 8 Hunter 1 | . . . . . 1 Best Kill Streak 7 | . 6 5 . . 7 Combat Bots Only 7 | . 4 5 . . 7 Max Kills in Single Turn 3 | . 2 2 . . 3 Gunslinging . | . . . . . . Exploded 3 | . . 2 . . 3 Melee 1 | . . 1 . . 1 Uniques/NPCs Destroyed . | . . . . . . Combat | -11 -10 -10 -10 -9 -8 -------- Run | Scr Mat Min Exi Min Mat Damage Taken 3652 | . 322 166 . . 3164 Core 658 | . 71 31 . . 556 Absorbed by Shields 535 | . . . . . 535 Core Remaining (%) 79 | 100 . . . 59 . Volleys Fired 182 | . 35 9 . . 138 Largest 2 | . 2 2 . . 2 Hottest 98 | . 85 98 . . 88 Shots Fired 328 | . 60 11 1 . 256 Gun 282 | . 60 2 . . 220 Cannon 27 | . . . . . 27 Launcher 19 | . . 9 1 . 9 Special . | . . . . . . Kinetic 263 | . 42 . . . 221 Thermal 46 | . 18 2 . . 26 Explosive 19 | . . 9 1 . 9 Electromagnetic . | . . . . . . Robot Hit Streak 14 | . 9 11 . . 14 Robot Miss Streak 3 | . 2 3 . . 3 Penetration Max . | . . . . . . Secondary Targets 2 | . . . . . 2 Max Gunslinging Chain 1 | . . . . . 1 Shots Hit Robots 263 | . 38 13 . . 212 Core Hits 125 | . 26 14 . . 85 Critical Kills . | . . . . . . Critical Parts Destroyed 1 | . . . . . 1 Critical Strikes 11 | . 1 2 . . 8 Burn 5 | . 1 2 . . 2 Destroy 1 | . . . . . 1 Impale 5 | . . . . . 5 Melee Attacks 61 | . . 11 . . 50 Impact . | . . . . . . Slashing 3 | . . . . . 3 Piercing 58 | . . 11 . . 47 Sneak Attacks 8 | . . 4 . . 4 Combat Hostiles 1 | . . . . . 1 Follow-up Attacks . | . . . . . . Damage Inflicted 5706 | . 530 813 . . 4363 Guns 2915 | . 527 34 . . 2354 Cannons 397 | . . . . . 397 Explosions 1045 | . . 406 . . 639 Melee 1323 | . . 354 . . 969 Ramming 26 | . 3 19 . . 4 Kinetic 2767 | . 331 . . . 2436 Thermal 545 | . 196 34 . . 315 Explosive 1045 | . . 406 . . 639 Electromagnetic . | . . . . . . Impact . | . . . . . . Slashing 142 | . . . . . 142 Piercing 1181 | . . 354 . . 827 Highest Corruption 4 | . . 4 4 4 . Average Corruption 4 | . . 4 4 4 . Corruption Purged . | . . . . . . Corruption Blocked . | . . . . . . Effects 24 | . . 11 12 1 . Message Errors 9 | . . 4 4 1 . Matter Fused 4 | . . 2 2 . . Heat Flow Errors 4 | . . 3 1 . . Energy Discharges 3 | . . 1 2 . . Data Loss (minor) 2 | . . 1 1 . . Data Loss (major) 1 | . . . 1 . . Misfires 1 | . . . 1 . . Overload Shots . | . . . . . . Overflow Damage 147 | . . 81 . . 66 Projectiles . | . . . . . . Explosions . | . . . . . . Melee 147 | . . 81 . . 66 Knockbacks 1 | . . . . . 1 Impact . | . . . . . . Kinetic 1 | . . . . . 1 Secondary . | . . . . . . Self-Inflicted Damage 87 | . 1 9 . . 77 Shots 3 | . . . . . 3 Rammed 4 | . 1 1 . . 2 Targets Rammed 5 | . 1 1 . . 3 Kicked . | . . . . . . Crushed 1 | . . . . . 1 Highest Temperature 456 | . 108 219 117 . 456 Average Temperature 127 | . 32 78 72 . 139 Received Heat Transfer 1590 | . 144 30 . . 1416 Effects 10 | . . . . . 10 Shutdowns 2 | . . . . . 2 Energy Bleed 3 | . . . . . 3 Interference 3 | . . . . . 3 Short Circuit 2 | . . . . . 2 Siege Activations . | . . . . . . Robots Corrupted . | . . . . . . Combat Hostiles . | . . . . . . Parts Fried . | . . . . . . Impact Corruptions . | . . . . . . Robots Melted . | . . . . . . Combat Hostiles . | . . . . . . Parts Melted 3 | . 1 . . . 2 Heat Transferred 1665 | . 555 222 . . 888 Parts Sabotaged . | . . . . . . Parts Stolen . | . . . . . . Parts Stripped . | . . . . . . Power Chain Reactions . | . . . . . . Missiles Intercepted . | . . . . . . Alert | -11 -10 -10 -10 -9 -8 ------- Run | Scr Mat Min Exi Min Mat Peak Influence 570 | . 348 322 . . 570 Initial 27 | . . 27 . . . Average 238 | . 131 251 . . 295 Maximum Alert Level 2 | . 1 1 . . 2 Low Security (%) 49 | . 87 28 . 100 35 Level 1 33 | . 12 71 . . 33 Level 2 16 | . . . . . 31 Level 3 . | . . . . . . Level 4 . | . . . . . . Level 5 . | . . . . . . High Security . | . . . . . . Max Security . | . . . . . . Squads Dispatched 11 | . 1 . . . 10 Investigation 2 | . . . . . 2 Extermination . | . . . . . . Reinforcement 5 | . 1 . . . 4 Assault 1 | . . . . . 1 Garrison 3 | . . . . . 3 Intercept . | . . . . . . Searches Triggered . | . . . . . . Construction Impeded 1 | . . . . . 1 Haulers Reinforced . | . . . . . . Active Scanning Responses . | . . . . . . Cargo Convoy Interrupts . | . . . . . . Stealth | -11 -10 -10 -10 -9 -8 --------- Run | Scr Mat Min Exi Min Mat Distress Signals 6 | . 1 . . . 5 Communications Jammed . | . . . . . . Distress Signals . | . . . . . . Times Spotted 97 | . 19 10 . . 68 Peak Tracking Total 5 | . 3 3 . . 5 Tactical Retreats . | . . . . . . Traps | -11 -10 -10 -10 -9 -8 ------- Run | Scr Mat Min Exi Min Mat Traps Triggered 4 | . 2 . . . 2 Indirectly . | . . . . . . Trap Hack Attempts . | . . . . . . Triggered . | . . . . . . Disarmed . | . . . . . . Reprogrammed . | . . . . . . Reused . | . . . . . . Traps Extracted . | . . . . . . Installed . | . . . . . . Triggered . | . . . . . . Machines | -11 -10 -10 -10 -9 -8 ---------- Run | Scr Mat Min Exi Min Mat Machines Disabled 9 | . 1 2 2 . 4 Max in Single Turn 2 | . 1 1 2 . 2 Machines Sabotaged . | . . . . . . Garrisons Compromised . | . . . . . . Overloaded Fab Kills . | . . . . . . Hacking | -11 -10 -10 -10 -9 -8 --------- Run | Scr Mat Min Exi Min Mat Machines Accessed 9 | . 6 . 1 . 2 Terminals 7 | . 6 . . . 1 Fabricators . | . . . . . . Repair Stations . | . . . . . . Recycling Units . | . . . . . . Scanalyzers 1 | . . . . . 1 Garrison Access . | . . . . . . Total Hacks 31 | . 18 . 1 . 12 Successful 23 | . 12 . 1 . 10 Failed 8 | . 6 . . . 2 Catastrophic . | . . . . . . Database Lockouts . | . . . . . . Manual 5 | . 3 . . . 2 Terminals 20 | . 18 . . . 2 Fabricators . | . . . . . . Repair Stations . | . . . . . . Recycling Units . | . . . . . . Scanalyzers 10 | . . . . . 10 Garrison Access . | . . . . . . Terminal Hacks 12 | . 11 . 1 . . Record 1 | . . . 1 . . Robot Analysis 1 | . 1 . . . . Prototype ID Bank 2 | . 2 . . . . Branch Access Points 1 | . 1 . . . . Alert Level 1 | . 1 . . . . Locate Traps 1 | . 1 . . . . Transport Status 1 | . 1 . . . . Hauler Manifests 1 | . 1 . . . . Zone Layout 3 | . 3 . . . . Fabricator Hacks . | . . . . . . Repair Station Hacks . | . . . . . . Recycling Unit Hacks . | . . . . . . Scanalyzer 10 | . . . . . 10 Insert Component 5 | . . . . . 5 Analyze 5 | . . . . . 5 Garrison Access Hacks . | . . . . . . Unauthorized Hacks 1 | . 1 . . . . Terminals 1 | . 1 . . . . Botnet 1 | . 1 . . . . Fabricators . | . . . . . . Repair Stations . | . . . . . . Recycling Units . | . . . . . . Scanalyzers . | . . . . . . Garrison Access . | . . . . . . Data Cores Recovered 1 | . 1 . . . . Used 1 | . 1 . . . . Hacking Detections 6 | . 4 . . . 2 Full Trace Events 2 | . 1 . . . 1 Feedback Events . | . . . . . . Feedback Blocked . | . . . . . . Robot Schematics Acquired . | . . . . . . Robots Built . | . . . . . . Authchips . | . . . . . . Time . | . . . . . . Total Robot Build Rating . | . . . . . . Part Schematics Acquired 4 | . . . . . 4 Parts Built . | . . . . . . Authchips . | . . . . . . Time . | . . . . . . Total Part Build Rating . | . . . . . . Parts Repaired . | . . . . . . Time . | . . . . . . Parts Recycled . | . . . . . . Recycled Matter . | . . . . . . Retrieved Matter . | . . . . . . Retrieved Components . | . . . . . . Parts Scanalyzed 4 | . . . . . 4 Part Schematics Acquired 4 | . . . . . 4 Parts Damaged . | . . . . . . Bothacking | -11 -10 -10 -10 -9 -8 ------------ Run | Scr Mat Min Exi Min Mat Used RIF Installer . | . . . . . . Robots Hacked . | . . . . . . Non-combat . | . . . . . . Combat . | . . . . . . Robot Hacks Applied . | . . . . . . Relay Couplers Released . | . . . . . . Fabnet Peak Effective % . | . . . . . . Robots Rewired . | . . . . . . Allies Hacked . | . . . . . . Hacks Repelled . | . . . . . . Allies | -11 -10 -10 -10 -9 -8 -------- Run | Scr Mat Min Exi Min Mat Total Allies 2 | . . 2 . . . Largest Group 2 | . . 2 . . . Highest-Rated Group 49 | . . 49 . . . Highest-Rated Ally 31 | . . 31 . . . Total Orders . | . . . . . . Ally Attacks 10 | . . 10 . . . Total Damage 158 | . . 158 . . . Kills 3 | . . 3 . . . Allies Corrupted . | . . . . . . Allies Melted . | . . . . . . Intel | -11 -10 -10 -10 -9 -8 ------- Run | Scr Mat Min Exi Min Mat Robot Analysis Total 1 | . 1 . . . . Derelict Logs Recovered 2 | . . 2 . . . Drone Launches . | . . . . . . Drone Recoveries . | . . . . . . Exploration | -11 -10 -10 -10 -9 -8 ------------- Run | Scr Mat Min Exi Min Mat Turns Passed 4391 | . 1177 680 418 20 2096 Spaces Moved 2699 | 1 854 527 380 19 918 Core . | . . . . . . Treads 196 | . 85 12 . . 99 Legs 50 | 1 49 . . . . Wheels 2453 | . 720 515 380 19 819 Hover . | . . . . . . Flight . | . . . . . . Fastest Speed 95 | 120 95 110 110 110 125 Average Speed 129 | 120 121 118 110 110 152 Slowest Speed 330 | 120 240 240 110 110 330 Overloaded Moves . | . . . . . . Propulsion Burnouts . | . . . . . . Robots Hopped . | . . . . . . Cave-ins Triggered . | . . . . . . Exploration Rate (%) 57 | 1 97 90 86 7 65 Regions Visited 5 Branch Regions 3 Pre-discovered Areas 2 | . . 1 1 . . Known Exits Taken 1 | . 1 . . . . Unknown Exits Taken 4 | 1 . 1 1 1 . Scrap Searched 2 | . . 1 . 1 . Spaces Dug . | . . . . . . Terrain Destroyed 147 | . . 69 6 . 72 Melee . | . . . . . . Projectile 2 | . . . . . 2 AOE 145 | . . 69 6 . 70 Terrain Rammed . | . . . . . . Walls Destroyed . | . . . . . . Machines Disabled . | . . . . . . Actions | -11 -10 -10 -10 -9 -8 --------- Run | Scr Mat Min Exi Min Mat Total 3226 | . 938 562 380 18 1328 Wait 99 | . 20 6 . . 73 Move 2694 | . 853 526 379 18 918 Hop . | . . . . . . Pick Up 46 | . 13 3 . . 30 Fast Attach 31 | . 6 . . . 25 Attach 18 | . 1 3 . . 14 Detach 2 | . . . 1 . 1 Swap 39 | . 2 1 . . 36 Drop 50 | . 7 2 . . 41 Fire 182 | . 35 9 . . 138 Melee 60 | . . 11 . . 49 Ram 3 | . 1 1 . . 1 Kick . | . . . . . . Crush 2 | . . . . . 2 Escape Stasis . | . . . . . . Rewire . | . . . . . . Trap . | . . . . . . Miscellaneous . | . . . . . . Route ------- -11/Scrapyard -10/Materials (discovered 5 exits: [*Mat x3] / *Min x2) -10/Mines (discovered 3 exits: [*Mat x2] / *Exi) -10/Exiles -9/Mines -8/Materials (discovered 2 exits: *Sto x2) History --------- Turn | Location | Event 1 | -11/Scrapyard | Discovered new exit (range 0) 1 | -11/Scrapyard | Entered Materials 46 | -10/Materials | Discovered new exit (range 12) 46 | -10/Materials | Discovered new exit (range 7) 227 | -10/Materials | Discovered new exit (range 11) 300 | -10/Materials | Build established: Mutant 324 | -10/Materials | Identified exit to Mines 348 | -10/Materials | Discovered new exit (range 16) 482 | -10/Materials | Discovered new exit (range 3) 1178 | -10/Materials | Entered Mines 1207 | -10/Mines | Learned location of Recycling (-8) 1291 | -10/Mines | Learned Materials stockpile data 1764 | -10/Mines | Discovered new exit (range 5) 1795 | -10/Mines | Discovered new exit (range 7) 1852 | -10/Mines | Deemed a non-threat by the Exiles lab entrance 1852 | -10/Mines | Discovered new exit (range 5) 1858 | -10/Mines | Entered Exiles 1884 | -10/Exiles | Met 8R-AWN 1905 | -10/Exiles | Met EX-HEX 1938 | -10/Exiles | Met EX-BIN 2009 | -10/Exiles | Met EX-DEC 2016 | -10/Exiles | Learned location of Zion (-6) 2060 | -10/Exiles | Visited The Gauntlet 2262 | -10/Exiles | Discovered new exit (range 14) 2276 | -10/Exiles | Entered Mines 2287 | -9/Mines | Discovered new exit (range 7) 2296 | -9/Mines | Entered Materials 2296 | -8/Materials | Evolved 4 slots: Power x1, Propulsion x1, Utility x2 2299 | -8/Materials | Discovered new exit (range 15) 2618 | -8/Materials | Build established: Scavenger-Mutant 2632 | -8/Materials | Garrison activated, responded to threat 2889 | -8/Materials | Core integrity fell below 50% 2900 | -8/Materials | Lost 6 parts (1p3n2w) 3531 | -8/Materials | Destroyed 7 combat bots 3668 | -8/Materials | Identified exit to Storage 3777 | -8/Materials | Discovered exit to Storage (range 7) 4085 | -8/Materials | Core integrity fell below 20% 4296 | -8/Materials | First assault squad dispatched 4392 | -8/Materials | Destroyed by B-36 Bruiser with Hammer Last Messages --------------- 04189_ K-01 Serf collects debris. 04193_ Acquired 44 matter. 04198_ Dropped Imp. Heat Sink. 04203_ K-01 Serf collects debris. 04209_ K-01 Serf destroyed. 04213_ Acquired 23 matter. 04216_ Acquired Wheel. 04296_ ALERT: Significant disruption in Zone 1Y, assault force dispatched. 04317_ R-06 Scavenger collects Imp. Heat Sink. 04320_ R-06 Scavenger collects Particle Gun. 04327_ R-06 Scavenger collects Imp. Heat Sink. 04372_ Connecting with Terminal... 04381_ C-30 ARC bursts open, deploying its payload. 04381_ G-50 Soldier unfolds itself. 04381_ B-36 Bruiser unfolds itself. 04381_ G-47 Trooper unfolds itself. 04381_ M-28 Smith unfolds itself. 04389_ Discarded Imp. Signal Interpreter. 04392_ Terminal disabled. 04392_ Electrolysis Chamber disabled. Map ----- +----------------------------------------------------+ | !####+######/####### ###+#### ?????????????? | | # ! ????????????? | | / = ????????????? | | # ????????????? | | " ######## ############# ##########????????????? | | " # # #???????????? #?????????????????????? | | " # T # #?????????????#?????????????????????? | | ### + #???????????????????????????????????? | | ??# ! # #???????????????????????????????????? | | ??# # #???????????????????????????????????? | | ??# """?# #???????????? ??????????????????????? | | ??# """?# #???????????? ??????????????????????? | | ??# ""??# #???????????? ??????????????????????? | | ??# ??# #???????????? #?????????????????????? | | ??# ? ???# #???#####???? #?????????????????????? | | ?????????# ##### #???# #?????????????????????? | | ?????????# #???#g#?????????????????????? | | ?????????# ##### #???# #?????????????????????? | | ?????????##+##???## ##???# #?????????????????????? | | ??????????????????# #??###m###???????????????????? | | ??????????????????# #?## #???????????????????? | | ??????????????????# ### #???????????????????? | | ??????????????????# #???????????????????? | | ?????????????????## gg #???????????????????? | | ?????????????????# b ###?????????????????? | | ?????????????????#!!!!== @ #?????????????????? | | ?????????????????#!!!!== "" #?????????????????? | | ?????????????????######## """ #?????????????????? | | ????????????????????????#/ """ #?????????????????? | | ????????????????????????# #?????????????????? | | ????????????????????????# "T" /#?????????????????? | | ????????????????????????########?????????????????? | | | | | | | | | | | | | | | | | | | | | | | | | | | | | | | | | | | | | +----------------------------------------------------+ Best States ------------- Heat Dissipation 50 Energy Generation 23 Energy Capacity 445 Matter Stores 300 Matter Capacity 300 Sight Range 18 Terrain Scan Density 10 Armor Coverage 375 Evasion (%) 55 Recoil Reduction 2 Item Schematics ----------------- Sensor Array | -8/Materials | Scanalyzed Com. Wheel | -8/Materials | Scanalyzed Assault Rifle | -8/Materials | Scanalyzed Rocket Launcher | -8/Materials | Scanalyzed Robot Schematics ------------------ None Fabricated ------------ Nothing Alien Tech Used ----------------- None Achievements -------------- None Challenges ------------ None Game ------ Seed ModifiedIntegrityChronowheel Manual? 0 Play Time 00:45:19 Cumulative 143.1 hours Start 2022.06.05 @ 13:13:17 End 2022.06.05 @ 14:10:36 Sessions 1 Manual Loads 0 Difficulty Rogue Special Mode None Game No. 62 Rogue 59 Adventurer 3 Explorer 0 Win Type - Total 4 Types 3/0/1/0/0/0/0/0/0 Lore% 44 Gallery% 68 Achievement% 71 Wizard Run 0 Options --------- ASCII 0 Keyboard 0 Movement Numpad Keybinds 0 Fullscreen 1 Font 24/Smallcaps Map View 76x50 Tactical HUD 1 Map Filters NONE Filters LOW_CONTRAST(13,24,33) Steam 1 RUN: 2c722cdf-715a-4cb2-a969-7975fb194c2f